fUST/lending_fUST_20250609
["ID","MTS","AMOUNT","RATE_DAILY","PERIOD"]
[365048826,1749426647383,-165.3309429,0.00023397,2]
[365048827,1749426647393,-151.0,0.000234,9]
[365048828,1749426647403,-963.0,0.00023446,2]
[365048829,1749426647413,-2159.0,0.00023446,2]
[365048830,1749426647423,-652.0,0.00023446,2]
[365048831,1749426647433,-405.0,0.00023446,2]
[365048832,1749426647444,-215.0738,0.00023507,2]
[365048833,1749426647456,-1428.89220826,0.00023521,9]
[365048834,1749426647466,-500.0,0.0002356,2]
[365048835,1749426647476,-500.0,0.0002356,2]
[365048836,1749426647486,-500.0,0.0002356,2]
[365048837,1749426647496,-500.0,0.0002356,2]
[365048838,1749426647506,-500.0,0.0002356,2]
[365048839,1749426647515,-621.67,0.00023561,4]
[365048840,1749426647525,-444.46,0.00023561,4]
[365048841,1749426647536,-572.29,0.00023561,4]
[365048842,1749426647546,-1082.31,0.00023561,4]
[365048843,1749426647569,-603.49,0.00023561,4]
[365048844,1749426647580,-164.7596522,0.00023561,4]
[365048845,1749426647591,-665.75,0.00023561,4]
[365048846,1749426647601,-525.09,0.00023561,4]
[365048847,1749426647612,-1465.43,0.00023561,4]
[365048848,1749426647623,-1052.92,0.00023561,4]
[365048849,1749426647634,-599.24,0.00023561,4]
[365048850,1749426647644,-1287.78,0.00023561,4]
[365048851,1749426647655,-440.0,0.00023561,4]
[365048852,1749426647665,-440.0,0.00023561,4]
[365048853,1749426647676,-610.74,0.00023561,4]
[365048854,1749426647687,-2400.0,0.00023589,2]
[365048855,1749426647697,-823.0,0.00023595,2]
[365048856,1749426647707,-269.29463483,0.000236,2]
[365048857,1749426647717,-600.0,0.00023617,2]
[365048858,1749426647727,-500.0,0.00023673,2]
[365048859,1749426647739,-1428.89220826,0.00023693,9]
[365048860,1749426647749,-2000.0,0.00023698,7]
[365048861,1749426647760,-2000.0,0.00023698,7]
[365048862,1749426647770,-1000.0,0.00023698,7]
[365048863,1749426647780,-165.3309429,0.00023699,2]
[365048864,1749426647790,-165.33094289,0.00023699,2]
[365048865,1749426647800,-165.33094289,0.00023699,2]
[365048866,1749426647810,-38114.8448834,0.00023699,2]
[365048867,1749426647821,-338454.50457004,0.000237,2]
[365048868,1749426647832,-962.33,0.000237,7]
[365048869,1749426647842,-213.05153702,0.000237,7]
[365048870,1749426647852,-151.0,0.000237,7]
[365048871,1749426647863,-151.0,0.000237,7]
[365048872,1749426647875,-151.0,0.000237,7]
[365048873,1749426647885,-151.0,0.000237,7]
[365048874,1749426647897,-155.126358,0.000237,7]
[365048875,1749426647907,-151.0,0.000237,7]
[365048876,1749426647917,-151.0,0.000237,7]
[365048877,1749426647929,-151.0,0.000237,7]
[365048878,1749426647940,-151.760305,0.000237,7]
[365048879,1749426647950,-553.704556,0.000237,2]
[365048880,1749426647961,-553.704556,0.000237,2]
[365048881,1749426647971,-151.0,0.000237,7]
[365048882,1749426647980,-151.0,0.000237,7]
[365048883,1749426647992,-151.0,0.000237,7]
[365048884,1749426648001,-151.0,0.000237,7]
[365048885,1749426648011,-151.0,0.000237,7]
[365048886,1749426648021,-1446.95699465,0.000237,2]
[365048887,1749426648032,-151.0,0.000237,7]
[365048888,1749426648042,-151.0,0.000237,7]
[365048889,1749426648052,-151.0,0.000237,7]
[365048890,1749426648063,-151.0,0.000237,7]
[365048891,1749426648074,-151.0,0.000237,7]
[365048892,1749426648084,-151.0,0.000237,7]
[365048893,1749426648094,-151.0,0.000237,7]
[365048894,1749426648104,-151.0,0.000237,7]
[365048895,1749426648115,-157.426538,0.000237,7]
[365048896,1749426648125,-157.426538,0.000237,7]
[365048897,1749426648135,-151.0,0.000237,7]
[365048898,1749426648146,-151.0,0.000237,7]
[365048899,1749426648156,-151.0,0.000237,7]
[365048900,1749426648166,-151.0,0.000237,7]
[365048901,1749426648176,-226.185763,0.000237,7]
[365048902,1749426648187,-151.0,0.000237,7]
[365048903,1749426648198,-779.89,0.00023714,6]
[365048904,1749426648208,-153.0,0.00023726,2]
[365048905,1749426648345,-158.6873432,0.00023726,2]
[365048906,1749426648358,-153.0,0.00023726,2]
[365048907,1749426648369,-2000.0,0.00023744,2]
[365048908,1749426648379,-502.54998049,0.00023764,9]
[365048909,1749426648389,-501.51409749,0.00023772,9]
[365048910,1749426648399,-31002.30126067,0.0002378,2]
[365048911,1749426648409,-3902.44619205,0.0002378,2]
[365048912,1749426648419,-68276.67395977,0.0002378,5]
[365048913,1749426648429,-1446.95699463,0.00023785,2]
[365048914,1749426648438,-58132.95467638,0.000238,2]
[365048915,1749426648449,-307923.69514614,0.000238,3]
[365048916,1749426648460,-2446.31,0.000238,2]
[365048917,1749426648469,-151.0,0.000238,7]
[365048918,1749426648479,-151.0,0.000238,7]
[365048919,1749426648489,-151.0,0.000238,7]
[365048920,1749426648499,-151.0,0.000238,7]
[365048921,1749426648508,-151.0,0.000238,7]
[365048922,1749426648518,-151.0,0.000238,7]
[365048923,1749426648528,-151.0,0.000238,7]
[365048924,1749426648538,-151.0,0.000238,7]
[365048925,1749426648548,-151.0,0.000238,7]
[365048926,1749426648558,-151.0,0.000238,7]
[365048927,1749426648568,-151.0,0.000238,7]
[365048928,1749426648578,-151.0,0.000238,7]
[365048929,1749426648587,-160.0,0.000238,3]
[365048930,1749426648597,-213.05153702,0.000238,3]
[365048931,1749426648607,-221.353691,0.000238,7]
[365048932,1749426648616,-237.367408,0.000238,7]
[365048933,1749426648626,-151.24807,0.000238,7]
[365048934,1749426648636,-151.0,0.000238,7]
[365048935,1749426648645,-237.367408,0.000238,7]
[365048936,1749426648655,-151.0,0.000238,7]
[365048937,1749426648664,-1000.0,0.000238,2]
[365048938,1749426648674,-151.0,0.000238,7]
[365048939,1749426648683,-151.326036,0.000238,7]
[365048940,1749426648693,-842.5625,0.000238,3]
[365048941,1749426648702,-151.0,0.000238,7]
[365048942,1749426648712,-467.875544,0.000238,7]
[365048943,1749426648722,-467.875544,0.000238,7]
[365048944,1749426648732,-151.0,0.000238,7]
[365048945,1749426648742,-151.0,0.000238,7]
[365048946,1749426648752,-151.0,0.000238,7]
[365048947,1749426648762,-11853.97844947,0.000238,3]
[365048948,1749426648772,-151.0,0.000238,7]
[365048949,1749426648783,-151.0,0.000238,7]
[365048950,1749426648793,-160.0,0.000238,3]
[365048951,1749426648803,-553.704556,0.000238,2]
[365048952,1749426648813,-553.704556,0.000238,2]
[365048953,1749426648823,-151.0,0.000238,7]
[365048954,1749426648833,-151.0,0.000238,7]
[365048955,1749426648842,-151.0,0.000238,7]
[365048956,1749426648853,-151.0,0.000238,7]
[365048957,1749426648864,-229.60437222,0.000238,3]
[365048958,1749426648873,-151.0,0.000238,7]
[365048959,1749426648883,-834.62475315,0.000238,3]
[365048960,1749426648893,-151.0,0.000238,7]
[365048961,1749426648902,-162.893172,0.000238,7]
[365048962,1749426648912,-151.0,0.000238,7]
[365048963,1749426648923,-315.11541396,0.000238,3]
[365048964,1749426648932,-151.0,0.000238,7]
[365048965,1749426648943,-151.0,0.000238,7]
[365048966,1749426648953,-151.0,0.000238,7]
[365048967,1749426648963,-151.0,0.000238,7]
[365048968,1749426648973,-151.0,0.000238,7]
[365048969,1749426648983,-160.0,0.000238,3]
[365048970,1749426648994,-157.426538,0.000238,7]
[365048971,1749426649004,-157.426538,0.000238,7]
[365048972,1749426649015,-151.0,0.000238,7]
[365048973,1749426649024,-151.0,0.000238,7]
[365048974,1749426649034,-151.0,0.000238,7]
[365048975,1749426649044,-221.263539,0.000238,7]
[365048976,1749426649054,-779.89,0.00023814,7]
[365048977,1749426649064,-621.67,0.00023835,4]
[365048978,1749426649073,-444.46,0.00023835,4]
[365048979,1749426649084,-572.29,0.00023835,4]
[365048980,1749426649093,-1082.31,0.00023835,4]
[365048981,1749426649103,-603.49,0.00023835,4]
[365048982,1749426649114,-665.75,0.00023835,4]
[365048983,1749426649123,-525.09,0.00023835,4]
[365048984,1749426649133,-1465.43,0.00023835,4]
[365048985,1749426649144,-1052.92,0.00023835,4]
[365048986,1749426649154,-599.24,0.00023835,4]
[365048987,1749426649163,-1287.78,0.00023835,4]
[365048988,1749426649173,-440.0,0.00023835,4]
[365048989,1749426649182,-440.0,0.00023835,4]
[365048990,1749426649192,-610.74,0.00023835,4]
[365048991,1749426649202,-600.0,0.00023863,2]
[365048992,1749426649212,-1428.89220826,0.00023866,10]
[365048993,1749426649222,-1446.95699463,0.0002387,2]
[365048994,1749426649231,-1599.999999,0.0002388,2]
[365048995,1749426649242,-56056.41,0.000239,2]
[365048996,1749426649252,-572.77274028,0.000239,2]
[365048997,1749426649262,-779.89,0.00023914,5]
[365048998,1749426649275,-1446.95699463,0.00023955,2]
[365048999,1749426649285,-167084.79361399,0.00023988,2]
[365049000,1749426649294,-32419.94267802,0.00024,2]
[365049001,1749426649358,-440.0,0.00019178,2]
[365049002,1749426649368,-440.0,0.00019452,2]
[365049003,1749426649377,-118.77626096,0.00019726,2]
[365049004,1749426649561,-321.22373904,0.00019726,2]
[365049005,1749426649571,-440.0,0.0002,2]
[365049006,1749426649582,-440.0,0.00020273,2]
[365049007,1749426649591,-429.12,0.00020547,2]
[365049008,1749426649601,-151.0,0.000237,7]
[365049009,1749426649611,-151.0,0.000238,7]
[365049010,1749426649621,-71626.39796533,0.00024,2]
[365049011,1749426649632,-1073.2,0.00024,60]
[365049012,1749426649642,-10034.71672052,0.00024,2]
[365049013,1749426649652,-1397.64627252,0.00024,2]
[365049014,1749426649662,-151.0,0.00024,7]
[365049015,1749426649673,-151.0,0.00024,7]
[365049016,1749426649683,-151.0,0.00024,7]
[365049017,1749426649692,-151.0,0.00024,7]
[365049018,1749426649703,-151.0,0.00024,7]
[365049019,1749426649712,-184.085395,0.00024,7]
[365049020,1749426649722,-184.085395,0.00024,7]
[365049021,1749426649731,-152.645696,0.00024,7]
[365049022,1749426649741,-151.0,0.00024,7]
[365049023,1749426649751,-151.0,0.00024,7]
[365049024,1749426649760,-151.0,0.00024,7]
[365049025,1749426649770,-151.0,0.00024,7]
[365049026,1749426649780,-207.146799,0.00024,7]
[365049027,1749426649789,-172.960324,0.00024,7]
[365049028,1749426649799,-151.0,0.00024,7]
[365049029,1749426649808,-151.0,0.00024,7]
[365049030,1749426649817,-151.0,0.00024,7]
[365049031,1749426649827,-151.0,0.00024,7]
[365049032,1749426649837,-151.0,0.00024,7]
[365049033,1749426649846,-151.0,0.00024,7]
[365049034,1749426649855,-151.0,0.00024,7]
[365049035,1749426649865,-237.367408,0.00024,7]
[365049036,1749426649875,-237.367408,0.00024,7]
[365049037,1749426649884,-151.0,0.00024,7]
[365049038,1749426649893,-151.0,0.00024,7]
[365049039,1749426649903,-467.875544,0.00024,7]
[365049040,1749426649912,-467.875544,0.00024,7]
[365049041,1749426649922,-151.0,0.00024,7]
[365049042,1749426649932,-151.0,0.00024,7]
[365049043,1749426649942,-151.0,0.00024,7]
[365049044,1749426649953,-553.704556,0.00024,2]
[365049045,1749426649963,-553.704556,0.00024,2]
[365049046,1749426649973,-151.0,0.00024,7]
[365049047,1749426649983,-151.0,0.00024,7]
[365049048,1749426649992,-151.0,0.00024,7]
[365049049,1749426650002,-151.0,0.00024,7]
[365049050,1749426650012,-229.60437222,0.00024,7]
[365049051,1749426650021,-834.62475315,0.00024,7]
[365049052,1749426650031,-1848.09493324,0.00024,10]
[365049053,1749426650044,-770.81411547,0.00024,10]
[365049054,1749426650476,-155.74213003,0.00020076,2]
[365049055,1749426650486,-651.44633438,0.00024,10]
[365049056,1749426650499,-980.60153559,0.00024,10]
[365049057,1749426650519,-9278.16308132,0.00024,10]
[365049058,1749426650530,-151.0,0.00024,7]
[365049059,1749426650540,-8901.02280321,0.00024,10]
[365049060,1749426780832,150.0,0.00024568,30]
[365049061,1749426907481,237.057897,0.00013699,2]
[365049065,1749427506133,1200.0,0.00017999,2]
[365049067,1749427805953,1200.0,0.00017999,2]
[365049082,1749427831894,-1863.7081729,0.00018,2]
[365049088,1749427831942,-5515.62,0.00018,2]
[365049090,1749427831954,-699.856,0.00018,2]
[365049116,1749427832194,-1667.2158271,0.00018,2]
[365049118,1749427832205,-222.32,0.00018785,2]
[365049120,1749427832216,-300.0,0.00018818,2]
[365049123,1749427832226,-300.0,0.00018818,2]
[365049125,1749427832236,-300.0,0.0001882,2]
[365049127,1749427832247,-500.0,0.00018824,2]
[365049129,1749427832256,-294.85905833,0.00018824,2]
[365049131,1749427832266,-513.41535824,0.000189,2]
[365049133,1749427832276,-1575.69336328,0.000189,2]
[365049135,1749427832286,-1575.6933631,0.00019107,2]
[365049137,1749427832296,-438.63868862,0.00019173,2]
[365049139,1749427832305,-501.49495753,0.00019173,2]
[365049141,1749427832316,-500.0,0.00019173,2]
[365049143,1749427832325,-500.0,0.00019173,2]
[365049145,1749427832335,-160.0,0.00019175,2]
[365049147,1749427832345,-263.54962736,0.00019176,2]
[365049149,1749427832355,-346.50973115,0.00019176,2]
[365049151,1749427832364,-396.79834193,0.00019177,2]
[365049153,1749427832374,-500.0,0.00019177,2]
[365049156,1749427832384,-500.0,0.00019177,2]
[365049158,1749427832394,-500.0,0.00019177,2]
[365049160,1749427832404,-500.0,0.00019177,2]
[365049162,1749427832413,-500.0,0.00019177,2]
[365049164,1749427832423,-500.0,0.00019177,2]
[365049166,1749427832434,-555.9181672,0.00019177,2]
[365049168,1749427832444,-500.0,0.00019177,2]
[365049170,1749427832453,-400.0,0.00019177,2]
[365049172,1749427832463,-440.0,0.00019178,2]
[365049174,1749427832472,-440.0,0.00019178,2]
[365049176,1749427832482,-440.0,0.00019178,2]
[365049178,1749427832492,-440.0,0.00019178,2]
[365049180,1749427832502,-390.0,0.00019178,2]
[365049182,1749427832512,-440.0,0.00019178,2]
[365049184,1749427832522,-420.0,0.00019178,2]
[365049186,1749427832533,-430.0,0.00019178,2]
[365049188,1749427832543,-440.0,0.00019178,2]
[365049191,1749427832553,-440.0,0.00019178,2]
[365049193,1749427832564,-430.0,0.00019178,2]
[365049195,1749427832574,-490.0,0.00019178,2]
[365049197,1749427832583,-440.0,0.00019178,2]
[365049199,1749427832592,-410.0,0.00019178,2]
[365049201,1749427832602,-440.0,0.00019178,2]
[365049203,1749427832612,-489.92776016,0.00019178,2]
[365049205,1749427832621,-410.0,0.00019178,2]
[365049206,1749427832631,-440.0,0.00019178,2]
[365049207,1749427832640,-430.0,0.00019178,2]
[365049208,1749427832651,-466.07571363,0.00019178,2]
[365049209,1749427832660,-412.19491668,0.00019178,2]
[365049210,1749427832670,-500.0,0.00019178,2]
[365049211,1749427832680,-500.0,0.00019178,2]
[365049212,1749427832690,-440.0,0.00019178,2]
[365049213,1749427832700,-430.0,0.00019178,2]
[365049214,1749427832709,-430.0,0.00019178,2]
[365049215,1749427832718,-410.0,0.00019178,2]
[365049216,1749427832728,-430.0,0.00019178,2]
[365049217,1749427832737,-430.0,0.00019178,2]
[365049218,1749427832751,-430.0,0.00019178,2]
[365049219,1749427832760,-430.0,0.00019178,2]
[365049220,1749427832771,-384.9620667,0.00019178,2]
[365049221,1749427832780,-440.0,0.00019178,2]
[365049222,1749427832789,-430.0,0.00019178,2]
[365049223,1749427832799,-430.0,0.00019178,2]
[365049224,1749427832809,-579.21373026,0.00019178,2]
[365049225,1749427832819,-402.51580347,0.00019178,2]
[365049226,1749427832828,-440.0,0.00019178,2]
[365049227,1749427832838,-400.0,0.00019178,2]
[365049228,1749427832848,-430.0,0.00019178,2]
[365049229,1749427832858,-430.0,0.00019178,2]
[365049230,1749427832867,-430.0,0.00019178,2]
[365049231,1749427832877,-430.0,0.00019178,2]
[365049232,1749427832887,-511.81383833,0.00019178,2]
[365049233,1749427832897,-430.0,0.00019178,2]
[365049234,1749427832906,-430.0,0.00019178,2]
[365049235,1749427832916,-404.02215706,0.00019178,2]
[365049236,1749427832926,-430.0,0.00019178,2]
[365049237,1749427832935,-440.0,0.00019178,2]
[365049238,1749427832945,-430.0,0.00019178,2]
[365049239,1749427832955,-440.0,0.00019178,2]
[365049240,1749427832965,-440.0,0.00019178,2]
[365049241,1749427832975,-430.0,0.00019178,2]
[365049242,1749427832985,-547.54182785,0.00019178,2]
[365049243,1749427832994,-430.0,0.00019178,2]
[365049244,1749427833004,-440.0,0.00019178,2]
[365049245,1749427833014,-373.52021058,0.00019178,2]
[365049246,1749427833023,-430.0,0.00019178,2]
[365049247,1749427833034,-430.0,0.00019178,2]
[365049248,1749427833044,-443.92309113,0.00019178,2]
[365049249,1749427833053,-303.49,0.00019178,2]
[365049250,1749427833063,-509.7678836,0.00019178,2]
[365049251,1749427833073,-440.0,0.00019178,2]
[365049252,1749427833083,-390.93234264,0.00019178,2]
[365049253,1749427833093,-430.0,0.00019178,2]
[365049254,1749427833102,-440.0,0.00019178,2]
[365049255,1749427833112,-430.0,0.00019178,2]
[365049256,1749427833122,-375.2185052,0.00019178,2]
[365049257,1749427833133,-430.0,0.00019178,2]
[365049258,1749427833143,-470.0,0.00019178,2]
[365049259,1749427833154,-332.31697522,0.00019178,2]
[365049260,1749427833163,-430.0,0.00019178,2]
[365049261,1749427833173,-450.0,0.00019178,2]
[365049262,1749427833183,-370.0,0.00019178,2]
[365049263,1749427833192,-430.0,0.00019178,2]
[365049264,1749427833202,-430.0,0.00019178,2]
[365049265,1749427833211,-430.0,0.00019178,2]
[365049266,1749427833221,-430.0,0.00019178,2]
[365049267,1749427833231,-440.0,0.00019178,2]
[365049268,1749427833240,-430.0,0.00019178,2]
[365049269,1749427833249,-430.0,0.00019178,2]
[365049270,1749427833259,-430.0,0.00019178,2]
[365049271,1749427833269,-430.0,0.00019178,2]
[365049272,1749427833278,-440.0,0.00019178,2]
[365049273,1749427833288,-430.0,0.00019178,2]
[365049274,1749427833298,-430.0,0.00019178,2]
[365049275,1749427833307,-430.0,0.00019178,2]
[365049276,1749427833317,-350.80488444,0.00019178,2]
[365049277,1749427833330,-1000.0,0.00019178,2]
[365049278,1749427833339,-451.08331362,0.00019178,2]
[365049279,1749427833349,-430.0,0.00019178,2]
[365049280,1749427833359,-430.0,0.00019178,2]
[365049281,1749427833369,-430.0,0.00019178,2]
[365049282,1749427833379,-440.0,0.00019178,2]
[365049283,1749427833388,-430.0,0.00019178,2]
[365049284,1749427833397,-430.0,0.00019178,2]
[365049285,1749427833407,-440.0,0.00019178,2]
[365049286,1749427833417,-430.0,0.00019178,2]
[365049287,1749427833427,-420.50975044,0.00019178,2]
[365049288,1749427833436,-430.0,0.00019178,2]
[365049289,1749427833446,-440.0,0.00019178,2]
[365049290,1749427833456,-424.27285031,0.00019178,2]
[365049291,1749427833466,-430.0,0.00019178,2]
[365049292,1749427833476,-430.0,0.00019178,2]
[365049293,1749427833487,-430.0,0.00019178,2]
[365049294,1749427833496,-430.0,0.00019178,2]
[365049295,1749427833506,-430.0,0.00019178,2]
[365049296,1749427833517,-430.0,0.00019178,2]
[365049297,1749427833527,-430.0,0.00019178,2]
[365049298,1749427833537,-430.0,0.00019178,2]
[365049299,1749427833547,-440.0,0.00019178,2]
[365049300,1749427833557,-279.97918446,0.00019178,2]
[365049301,1749427833567,-430.0,0.00019178,2]
[365049302,1749427833577,-440.0,0.00019178,2]
[365049303,1749427833586,-430.0,0.00019178,2]
[365049304,1749427833596,-440.0,0.00019178,2]
[365049305,1749427833606,-445.52632558,0.00019178,2]
[365049306,1749427833616,-450.0,0.00019178,2]
[365049307,1749427833626,-430.0,0.00019178,2]
[365049308,1749427833636,-430.0,0.00019178,2]
[365049309,1749427833646,-430.0,0.00019178,2]
[365049310,1749427833656,-430.0,0.00019178,2]
[365049311,1749427833666,-207.6195247,0.00019178,2]
[365049312,1749427833676,-430.0,0.00019178,2]
[365049313,1749427833686,-450.0,0.00019178,2]
[365049314,1749427833696,-430.0,0.00019178,2]
[365049315,1749427833706,-440.0,0.00019178,2]
[365049316,1749427833716,-430.0,0.00019178,2]
[365049317,1749427833726,-430.0,0.00019178,2]
[365049318,1749427833736,-440.0,0.00019178,2]
[365049319,1749427833751,-430.0,0.00019178,2]
[365049320,1749427833761,-451.20599261,0.00019178,2]
[365049321,1749427833772,-440.0,0.00019178,2]
[365049322,1749427833783,-430.0,0.00019178,2]
[365049323,1749427833793,-430.0,0.00019178,2]
[365049324,1749427833803,-451.05281378,0.00019178,2]
[365049325,1749427833816,-430.0,0.00019178,2]
[365049326,1749427833825,-440.0,0.00019178,2]
[365049327,1749427833835,-450.0,0.00019178,2]
[365049328,1749427833845,-539.12081235,0.00019178,2]
[365049329,1749427833855,-430.0,0.00019178,2]
[365049330,1749427833865,-440.0,0.00019178,2]
[365049331,1749427833876,-440.0,0.00019178,2]
[365049332,1749427833886,-443.07922437,0.00019178,2]
[365049333,1749427833896,-500.0,0.00019178,2]
[365049334,1749427833905,-500.0,0.00019178,2]
[365049335,1749427833915,-500.0,0.00019178,2]
[365049336,1749427833925,-626.51,0.00019178,2]
[365049337,1749427833936,-430.0,0.00019178,2]
[365049338,1749427833945,-440.0,0.00019178,2]
[365049339,1749427833955,-430.0,0.00019178,2]
[365049340,1749427833964,-296.87,0.00019178,2]
[365049341,1749427833975,-440.0,0.00019178,2]
[365049342,1749427833984,-430.0,0.00019178,2]
[365049343,1749427833994,-440.0,0.00019178,2]
[365049344,1749427834004,-440.0,0.00019178,2]
[365049345,1749427834014,-440.0,0.00019178,2]
[365049346,1749427834024,-440.0,0.00019178,2]
[365049347,1749427834033,-440.0,0.00019178,2]
[365049348,1749427834043,-440.0,0.00019178,2]
[365049349,1749427834052,-430.0,0.00019178,2]
[365049350,1749427834062,-560.0,0.00019178,2]
[365049351,1749427834072,-430.0,0.00019178,2]
[365049352,1749427834081,-430.0,0.00019178,2]
[365049353,1749427834092,-500.0,0.00019178,2]
[365049354,1749427834101,-486.89581797,0.00019178,2]
[365049358,1749427838085,-6419.48061519,0.00019166,2]
[365049359,1749427838211,-13.10418203,0.00019178,2]
[365049360,1749427838223,-500.0,0.00019178,2]
[365049361,1749427838233,-500.0,0.00019178,2]
[365049362,1749427838243,-440.0,0.00019178,2]
[365049363,1749427838253,-440.0,0.00019178,2]
[365049364,1749427838263,-430.0,0.00019178,2]
[365049365,1749427838273,-430.0,0.00019178,2]
[365049366,1749427838283,-450.0,0.00019178,2]
[365049367,1749427838292,-430.0,0.00019178,2]
[365049368,1749427838302,-565.79789111,0.00019178,2]
[365049369,1749427838312,-440.0,0.00019178,2]
[365049370,1749427838323,-440.0,0.00019178,2]
[365049371,1749427838332,-440.0,0.00019178,2]
[365049372,1749427838343,-430.0,0.00019178,2]
[365049373,1749427838354,-430.0,0.00019178,2]
[365049374,1749427838363,-440.0,0.00019178,2]
[365049375,1749427838374,-430.0,0.00019178,2]
[365049376,1749427838383,-430.0,0.00019178,2]
[365049377,1749427838393,-440.0,0.00019178,2]
[365049378,1749427838402,-440.0,0.00019178,2]
[365049379,1749427838412,-440.0,0.00019178,2]
[365049380,1749427838421,-500.0,0.00019178,2]
[365049381,1749427838431,-440.0,0.00019178,2]
[365049382,1749427838440,-440.0,0.00019178,2]
[365049383,1749427838449,-440.0,0.00019178,2]
[365049384,1749427838459,-440.0,0.00019178,2]
[365049385,1749427838468,-440.0,0.00019178,2]
[365049386,1749427838478,-430.0,0.00019178,2]
[365049387,1749427838487,-440.0,0.00019178,2]
[365049388,1749427838497,-440.0,0.00019178,2]
[365049389,1749427838506,-440.0,0.00019178,2]
[365049390,1749427838516,-440.0,0.00019178,2]
[365049391,1749427838525,-440.0,0.00019178,2]
[365049392,1749427838535,-440.0,0.00019178,2]
[365049393,1749427838545,-440.0,0.00019178,2]
[365049394,1749427838554,-440.0,0.00019178,2]
[365049395,1749427838564,-440.0,0.00019178,2]
[365049396,1749427838575,-430.0,0.00019178,2]
[365049397,1749427838585,-433.6077534,0.00019178,2]
[365049398,1749427838594,-430.0,0.00019178,2]
[365049399,1749427838603,-440.0,0.00019178,2]
[365049400,1749427838613,-430.0,0.00019178,2]
[365049401,1749427838623,-440.0,0.00019178,2]
[365049402,1749427838632,-695.15,0.00019178,2]
[365049403,1749427838642,-526.88429869,0.00019178,2]
[365049404,1749427838652,-430.0,0.00019178,2]
[365049405,1749427838662,-440.0,0.00019178,2]
[365049406,1749427838672,-1299.25,0.00019178,2]
[365049407,1749427838682,-581.46,0.00019178,2]
[365049408,1749427838691,-850.36,0.00019178,2]
[365049409,1749427838701,-430.0,0.00019178,2]
[365049410,1749427838710,-430.0,0.00019178,2]
[365049411,1749427838720,-500.0,0.00019178,2]
[365049412,1749427838729,-430.0,0.00019178,2]
[365049413,1749427838739,-440.0,0.00019178,2]
[365049414,1749427838752,-440.0,0.00019178,2]
[365049415,1749427838762,-440.0,0.00019178,2]
[365049416,1749427838772,-440.0,0.00019178,2]
[365049417,1749427838781,-571.009,0.00019178,2]
[365049418,1749427838791,-440.0,0.00019178,2]
[365049419,1749427838800,-440.0,0.00019178,2]
[365049420,1749427838810,-430.0,0.00019178,2]
[365049421,1749427838820,-440.0,0.00019178,2]
[365049422,1749427838829,-320.0,0.00019178,2]
[365049423,1749427838840,-402.44,0.00019178,2]